[Event "Titled Tuesday Blitz August 08 Late 2023"]
[White "Xiong, Jeffery"]
[Black "Haydon, David L"]
[WhiteFideId "2047640"]
[BlackFideId "415405"]
[WhiteElo "2969"]
[BlackElo "2783"]
[Result "1-0"]
[Round "11"]
[TimeControl "180+1"]
[Date "2023.08.08"]
[WhiteClock "0:01:53"]
[BlackClock "0:00:07"]
[Board "11"]

1. d4 {[%clk 0:02:51]}  Nf6 {[%clk 0:02:59]} 2. c4 {[%clk 0:02:50]}  e6 {[%clk 0:02:59]} 3. Nc3 {[%clk 0:02:51]}  Bb4 {[%clk 0:02:55]} 4. Nf3 {[%clk 0:02:51]}  b6 {[%clk 0:02:54]} 5. Qc2 {[%clk 0:02:51]}  Bb7 {[%clk 0:02:54]} 6. a3 {[%clk 0:02:51]}  Bxc3+ {[%clk 0:02:53]} 7. Qxc3 {[%clk 0:02:52]}  d6 {[%clk 0:02:49]} 8. e3 {[%clk 0:02:52]}  Nbd7 {[%clk 0:02:49]} 9. Be2 {[%clk 0:02:53]}  c5 {[%clk 0:02:48]} 10. O-O {[%clk 0:02:53]}  O-O {[%clk 0:02:45]} 11. b4 {[%clk 0:02:53]}  Qc7 {[%clk 0:02:42]} 12. Bb2 {[%clk 0:02:53]}  Rac8 {[%clk 0:02:39]} 13. Nd2 {[%clk 0:02:49]}  cxd4 {[%clk 0:02:35]} 14. exd4 {[%clk 0:02:48]}  a5 {[%clk 0:02:25]} 15. Qg3 {[%clk 0:02:44]}  Ne4 {[%clk 0:02:03]} 16. Nxe4 {[%clk 0:02:42]}  Bxe4 {[%clk 0:02:02]} 17. d5 {[%clk 0:02:32]}  e5 {[%clk 0:02:01]} 18. f4 {[%clk 0:02:33]}  f6 {[%clk 0:01:31]} 19. Qe3 {[%clk 0:02:29]}  Bg6 {[%clk 0:01:28]} 20. Rac1 {[%clk 0:02:28]}  exf4 {[%clk 0:01:24]} 21. Qxf4 {[%clk 0:02:26]}  axb4 {[%clk 0:01:20]} 22. axb4 {[%clk 0:02:26]}  Ne5 {[%clk 0:01:20]} 23. Bd4 {[%clk 0:02:26]}  Nd3 {[%clk 0:01:15]} 24. Bxd3 {[%clk 0:02:26]}  Bxd3 {[%clk 0:01:16]} 25. Rfe1 {[%clk 0:02:17]}  Bxc4 {[%clk 0:01:14]} 26. Re6 {[%clk 0:02:17]}  Qf7 {[%clk 0:01:11]} 27. Rxd6 {[%clk 0:02:07]}  Bxd5 {[%clk 0:01:08]} 28. Rxc8 {[%clk 0:02:07]}  Rxc8 {[%clk 0:01:07]} 29. Bxb6 {[%clk 0:02:08]}  Bb7 {[%clk 0:01:06]} 30. Qd2 {[%clk 0:02:03]}  Bc6 {[%clk 0:00:54]} 31. Rxc6 {[%clk 0:01:58]}  Rxc6 {[%clk 0:00:12]} 32. Qd8+ {[%clk 0:01:58]}  Qf8 {[%clk 0:00:13]} 33. Qd5+ {[%clk 0:01:58]}  Kh8 {[%clk 0:00:13]} 34. Qxc6 {[%clk 0:01:58]}  h6 {[%clk 0:00:11]} 35. Bc5 {[%clk 0:01:54]}  Qe8 {[%clk 0:00:07]} 36. Qxe8+ {[%clk 0:01:53]} 1-0


[Site "https://www.chess.com"]

[Event "Titled Tuesday Blitz August 08 Late 2023"]
[White "GaiozNigalidze"]
[Black "Rustemov, Alexander"]
[BlackFideId "4119002"]
[WhiteElo "2479"]
[BlackElo "2846"]
[Result "0-1"]
[Round "11"]
[TimeControl "180+1"]
[Date "2023.08.08"]
[WhiteClock "0:00:06"]
[BlackClock "0:00:03"]
[Board "18"]

1. a3 {[%clk 0:03:00]}  d5 {[%clk 0:02:59]} 2. d4 {[%clk 0:02:58]}  Nf6 {[%clk 0:02:58]} 3. Nf3 {[%clk 0:02:59]}  Bf5 {[%clk 0:02:57]} 4. e3 {[%clk 0:02:59]}  e6 {[%clk 0:02:57]} 5. b4 {[%clk 0:02:59]}  Nbd7 {[%clk 0:02:54]} 6. c4 {[%clk 0:02:58]}  c6 {[%clk 0:02:50]} 7. Bb2 {[%clk 0:02:57]}  Bd6 {[%clk 0:02:49]} 8. Bd3 {[%clk 0:02:54]}  Ne4 {[%clk 0:02:45]} 9. Nc3 {[%clk 0:02:54]}  Nxc3 {[%clk 0:02:40]} 10. Bxc3 {[%clk 0:02:52]}  Bxd3 {[%clk 0:02:38]} 11. Qxd3 {[%clk 0:02:51]}  O-O {[%clk 0:02:27]} 12. c5 {[%clk 0:02:25]}  Be7 {[%clk 0:02:18]} 13. b5 {[%clk 0:02:24]}  Qc7 {[%clk 0:02:15]} 14. O-O {[%clk 0:02:22]}  cxb5 {[%clk 0:02:10]} 15. Qxb5 {[%clk 0:02:21]}  Rfc8 {[%clk 0:02:07]} 16. Rfc1 {[%clk 0:02:08]}  b6 {[%clk 0:02:07]} 17. cxb6 {[%clk 0:01:56]}  Nxb6 {[%clk 0:02:01]} 18. Ne5 {[%clk 0:01:56]}  Nc4 {[%clk 0:01:54]} 19. Nd3 {[%clk 0:01:42]}  Rab8 {[%clk 0:01:52]} 20. Qa6 {[%clk 0:01:36]}  Rb6 {[%clk 0:01:41]} 21. Qa4 {[%clk 0:01:35]}  Rc6 {[%clk 0:01:40]} 22. Bb4 {[%clk 0:01:18]}  Bf6 {[%clk 0:01:16]} 23. Bc5 {[%clk 0:01:10]}  a5 {[%clk 0:01:05]} 24. Rab1 {[%clk 0:01:08]}  h6 {[%clk 0:01:04]} 25. h3 {[%clk 0:01:02]}  Bg5 {[%clk 0:01:02]} 26. Re1 {[%clk 0:00:59]}  e5 {[%clk 0:01:02]} 27. dxe5 {[%clk 0:00:50]}  Rxc5 {[%clk 0:00:59]} 28. Nxc5 {[%clk 0:00:49]}  Qxc5 {[%clk 0:01:00]} 29. Qb5 {[%clk 0:00:28]}  Nxa3 {[%clk 0:00:56]} 30. Qxc5 {[%clk 0:00:26]}  Rxc5 {[%clk 0:00:57]} 31. Rb8+ {[%clk 0:00:25]}  Kh7 {[%clk 0:00:57]} 32. Rb7 {[%clk 0:00:24]}  Kg6 {[%clk 0:00:46]} 33. Kh2 {[%clk 0:00:19]}  Nc4 {[%clk 0:00:44]} 34. f4 {[%clk 0:00:19]}  Bd8 {[%clk 0:00:41]} 35. g4 {[%clk 0:00:18]}  Bc7 {[%clk 0:00:40]} 36. Kg3 {[%clk 0:00:16]}  a4 {[%clk 0:00:36]} 37. Rc1 {[%clk 0:00:14]}  a3 {[%clk 0:00:36]} 38. Ra7 {[%clk 0:00:15]}  Kh7 {[%clk 0:00:32]} 39. Rxa3 {[%clk 0:00:14]}  g5 {[%clk 0:00:27]} 40. Rd3 {[%clk 0:00:14]}  Kg7 {[%clk 0:00:22]} 41. h4 {[%clk 0:00:14]}  f6 {[%clk 0:00:17]} 42. exf6+ {[%clk 0:00:11]}  Kxf6 {[%clk 0:00:18]} 43. hxg5+ {[%clk 0:00:11]}  hxg5 {[%clk 0:00:18]} 44. Rcd1 {[%clk 0:00:08]}  Ke6 {[%clk 0:00:15]} 45. Kf3 {[%clk 0:00:07]}  Rb5 {[%clk 0:00:12]} 46. Rc1 {[%clk 0:00:06]}  Bd6 {[%clk 0:00:11]} 47. Rh1 {[%clk 0:00:06]}  Rb2 {[%clk 0:00:09]} 48. Rh6+ {[%clk 0:00:05]}  Ke7 {[%clk 0:00:08]} 49. Rxd5 {[%clk 0:00:04]}  Nd2+ {[%clk 0:00:08]} 50. Ke2 {[%clk 0:00:04]}  Ne4+ {[%clk 0:00:07]} 51. Kd3 {[%clk 0:00:04]}  Nf2+ {[%clk 0:00:06]} 52. Kc4 {[%clk 0:00:04]}  Rb4+ {[%clk 0:00:04]} 53. Kc3 {[%clk 0:00:04]}  Ne4+ {[%clk 0:00:04]} 54. Kc2 {[%clk 0:00:03]}  gxf4 {[%clk 0:00:02]} 55. exf4 {[%clk 0:00:02]}  Bxf4 {[%clk 0:00:02]} 56. Rh7+ {[%clk 0:00:02]}  Ke6 {[%clk 0:00:03]} 57. Rdd7 {[%clk 0:00:01]}  Bd6 {[%clk 0:00:02]} 58. Rb7 {[%clk 0:00:01]}  Ra4 {[%clk 0:00:01]} 59. Kd3 {[%clk 0:00:01]}  Kd5 {[%clk 0:00:01]} 60. Ke2 {[%clk 0:00:02]}  Ra3 {[%clk 0:00:01]} 61. Rb5+ {[%clk 0:00:03]}  Bc5 {[%clk 0:00:01]} 62. Rd7+ {[%clk 0:00:03]}  Kc4 {[%clk 0:00:01]} 63. Rbb7 {[%clk 0:00:03]}  Re3+ {[%clk 0:00:01]} 64. Kd1 {[%clk 0:00:03]}  Rg3 {[%clk 0:00:01]} 65. Kc1 {[%clk 0:00:04]}  Rxg4 {[%clk 0:00:01]} 66. Kd1 {[%clk 0:00:05]}  Nc3+ {[%clk 0:00:01]} 67. Ke1 {[%clk 0:00:05]}  Rg1+ {[%clk 0:00:01]} 68. Kd2 {[%clk 0:00:05]}  Rg2+ {[%clk 0:00:02]} 69. Ke1 {[%clk 0:00:06]}  Re2+ {[%clk 0:00:02]} 70. Kf1 {[%clk 0:00:07]}  Rf2+ {[%clk 0:00:02]} 71. Ke1 {[%clk 0:00:07]}  Rg2 {[%clk 0:00:03]} 72. Kf1 {[%clk 0:00:07]}  Rf2+ {[%clk 0:00:02]} 73. Kg1 {[%clk 0:00:07]}  Rf5+ {[%clk 0:00:02]} 74. Kg2 {[%clk 0:00:08]}  Ne4 {[%clk 0:00:02]} 75. Rg7 {[%clk 0:00:07]}  Bd4 {[%clk 0:00:02]} 76. Rbc7+ {[%clk 0:00:07]}  Kd3 {[%clk 0:00:03]} 77. Rcd7 {[%clk 0:00:07]}  Ke3 {[%clk 0:00:03]} 78. Rg4 {[%clk 0:00:07]}  Rf2+ {[%clk 0:00:03]} 79. Kg1 {[%clk 0:00:07]}  Rf3 {[%clk 0:00:03]} 80. Kg2 {[%clk 0:00:07]}  Rf2+ {[%clk 0:00:03]} 81. Kg1 {[%clk 0:00:07]}  Re2 {[%clk 0:00:04]} 82. Re7 {[%clk 0:00:06]}  Kf3+ {[%clk 0:00:04]} 83. Kf1 {[%clk 0:00:06]}  Nd2# {[%clk 0:00:03]} 0-1


[Site "https://www.chess.com"]

[Event "Titled Tuesday Blitz August 08 Late 2023"]
[White "Vlassov, Nikolai"]
[Black "Gadimbayli, Abdulla"]
[WhiteFideId "4103360"]
[BlackFideId "13404938"]
[WhiteElo "2610"]
[BlackElo "2837"]
[Result "1-0"]
[Round "11"]
[TimeControl "180+1"]
[Date "2023.08.08"]
[WhiteClock "0:02:16"]
[BlackClock "0:02:35"]
[Board "19"]

1. e4 {[%clk 0:03:00]}  e5 {[%clk 0:02:58]} 2. Bc4 {[%clk 0:02:58]}  Nf6 {[%clk 0:02:58]} 3. d3 {[%clk 0:02:58]}  c6 {[%clk 0:02:58]} 4. Nf3 {[%clk 0:02:58]}  d5 {[%clk 0:02:58]} 5. Bb3 {[%clk 0:02:58]}  a5 {[%clk 0:02:57]} 6. Nc3 {[%clk 0:02:57]}  d4 {[%clk 0:02:55]} 7. Nxe5 {[%clk 0:02:56]}  dxc3 {[%clk 0:02:53]} 8. Nxf7 {[%clk 0:02:54]}  Qb6 {[%clk 0:02:49]} 9. Nxh8 {[%clk 0:02:50]}  a4 {[%clk 0:02:47]} 10. Bf7+ {[%clk 0:02:49]}  Ke7 {[%clk 0:02:48]} 11. bxc3 {[%clk 0:02:47]}  Bg4 {[%clk 0:02:48]} 12. f3 {[%clk 0:02:42]}  Qc5 {[%clk 0:02:48]} 13. fxg4 {[%clk 0:02:34]}  Qxc3+ {[%clk 0:02:48]} 14. Bd2 {[%clk 0:02:35]}  Qd4 {[%clk 0:02:49]} 15. Rb1 {[%clk 0:02:29]}  Nbd7 {[%clk 0:02:35]} 16. g5 {[%clk 0:02:16]} 1-0


[Site "https://www.chess.com"]

[Event "Titled Tuesday Blitz August 08 Late 2023"]
[White "Bauman_Guy"]
[Black "Moral Garcia, Serafin"]
[BlackFideId "2201925"]
[WhiteElo "2793"]
[BlackElo "2580"]
[Result "1-0"]
[Round "11"]
[TimeControl "180+1"]
[Date "2023.08.08"]
[WhiteClock "0:01:38"]
[BlackClock "0:00:22"]
[Board "20"]

1. e4 {[%clk 0:03:00]}  e5 {[%clk 0:02:43]} 2. Nf3 {[%clk 0:03:01]}  Nf6 {[%clk 0:02:43]} 3. Nxe5 {[%clk 0:03:00]}  d6 {[%clk 0:02:42]} 4. Nf3 {[%clk 0:03:01]}  Nxe4 {[%clk 0:02:42]} 5. d4 {[%clk 0:03:01]}  d5 {[%clk 0:02:42]} 6. Bd3 {[%clk 0:03:02]}  Be7 {[%clk 0:02:42]} 7. O-O {[%clk 0:03:02]}  Nc6 {[%clk 0:02:41]} 8. Nbd2 {[%clk 0:03:02]}  Nxd2 {[%clk 0:02:34]} 9. Bxd2 {[%clk 0:03:01]}  O-O {[%clk 0:02:34]} 10. c3 {[%clk 0:03:00]}  Bg4 {[%clk 0:02:34]} 11. Bf4 {[%clk 0:03:00]}  Bd6 {[%clk 0:02:33]} 12. Bg3 {[%clk 0:03:00]}  Ne7 {[%clk 0:02:29]} 13. Qc2 {[%clk 0:02:58]}  h6 {[%clk 0:02:27]} 14. Ne5 {[%clk 0:02:57]}  Be6 {[%clk 0:02:23]} 15. Rfe1 {[%clk 0:02:57]}  Qc8 {[%clk 0:02:17]} 16. Re2 {[%clk 0:02:52]}  Bf5 {[%clk 0:02:13]} 17. Rae1 {[%clk 0:02:50]}  Bxd3 {[%clk 0:02:12]} 18. Nxd3 {[%clk 0:02:48]}  Bxg3 {[%clk 0:02:06]} 19. hxg3 {[%clk 0:02:48]}  Nf5 {[%clk 0:01:54]} 20. Nc5 {[%clk 0:02:44]}  b6 {[%clk 0:01:48]} 21. Nd3 {[%clk 0:02:41]}  Nd6 {[%clk 0:01:39]} 22. Nf4 {[%clk 0:02:35]}  c6 {[%clk 0:01:38]} 23. Re7 {[%clk 0:02:34]}  Nf5 {[%clk 0:01:31]} 24. R7e5 {[%clk 0:02:34]}  Nd6 {[%clk 0:01:26]} 25. Qe2 {[%clk 0:02:30]}  Rb8 {[%clk 0:01:20]} 26. Nh5 {[%clk 0:02:26]}  f6 {[%clk 0:01:15]} 27. Re7 {[%clk 0:02:21]}  Rb7 {[%clk 0:01:15]} 28. Nxg7 {[%clk 0:02:17]}  Rxe7 {[%clk 0:01:05]} 29. Qxe7 {[%clk 0:02:16]}  Ne4 {[%clk 0:00:54]} 30. Ne6 {[%clk 0:01:54]}  Rf7 {[%clk 0:00:53]} 31. Qd8+ {[%clk 0:01:54]}  Qxd8 {[%clk 0:00:51]} 32. Nxd8 {[%clk 0:01:54]}  Rc7 {[%clk 0:00:52]} 33. Ne6 {[%clk 0:01:54]}  Re7 {[%clk 0:00:50]} 34. Nf4 {[%clk 0:01:53]}  Kf7 {[%clk 0:00:44]} 35. g4 {[%clk 0:01:52]}  Rd7 {[%clk 0:00:41]} 36. f3 {[%clk 0:01:51]}  Nd6 {[%clk 0:00:41]} 37. Kf2 {[%clk 0:01:51]}  f5 {[%clk 0:00:37]} 38. gxf5 {[%clk 0:01:46]}  Nxf5 {[%clk 0:00:37]} 39. g4 {[%clk 0:01:47]}  Nd6 {[%clk 0:00:35]} 40. Re6 {[%clk 0:01:42]}  Kg7 {[%clk 0:00:35]} 41. Nh5+ {[%clk 0:01:42]}  Kg8 {[%clk 0:00:31]} 42. Rxh6 {[%clk 0:01:40]}  Rd8 {[%clk 0:00:31]} 43. Rg6+ {[%clk 0:01:40]}  Kf8 {[%clk 0:00:29]} 44. Nf4 {[%clk 0:01:39]}  Kf7 {[%clk 0:00:28]} 45. Rh6 {[%clk 0:01:39]}  Ke7 {[%clk 0:00:24]} 46. Rh7+ {[%clk 0:01:38]}  Nf7 {[%clk 0:00:22]} 47. g5 {[%clk 0:01:38]} 1-0


[Site "https://www.chess.com"]

[Event "Titled Tuesday Blitz August 08 Late 2023"]
[White "Sreyas Payyappat"]
[Black "Troff, Kayden"]
[WhiteFideId "46674969"]
[BlackFideId "2047896"]
[WhiteElo "2552"]
[BlackElo "2781"]
[Result "0-1"]
[Round "11"]
[TimeControl "180+1"]
[Date "2023.08.08"]
[WhiteClock "0:00:01"]
[BlackClock "0:01:20"]
[Board "21"]

1. e4 {[%clk 0:03:00]}  c5 {[%clk 0:02:59]} 2. Nf3 {[%clk 0:03:00]}  g6 {[%clk 0:03:00]} 3. d4 {[%clk 0:03:00]}  cxd4 {[%clk 0:03:01]} 4. Nxd4 {[%clk 0:03:00]}  Bg7 {[%clk 0:03:01]} 5. Nc3 {[%clk 0:03:01]}  Nc6 {[%clk 0:03:00]} 6. Be3 {[%clk 0:03:01]}  Nf6 {[%clk 0:03:00]} 7. Be2 {[%clk 0:03:01]}  O-O {[%clk 0:02:58]} 8. f4 {[%clk 0:03:00]}  d5 {[%clk 0:02:57]} 9. e5 {[%clk 0:03:00]}  Ne4 {[%clk 0:02:57]} 10. Nxe4 {[%clk 0:02:58]}  dxe4 {[%clk 0:02:57]} 11. Nxc6 {[%clk 0:02:58]}  bxc6 {[%clk 0:02:57]} 12. Qxd8 {[%clk 0:02:57]}  Rxd8 {[%clk 0:02:57]} 13. O-O {[%clk 0:02:57]}  f6 {[%clk 0:02:55]} 14. Rad1 {[%clk 0:02:41]}  Be6 {[%clk 0:02:51]} 15. Bc5 {[%clk 0:02:27]}  Kf7 {[%clk 0:02:45]} 16. b3 {[%clk 0:02:10]}  a5 {[%clk 0:02:26]} 17. a4 {[%clk 0:02:07]}  Rd5 {[%clk 0:02:26]} 18. Bb6 {[%clk 0:02:05]}  fxe5 {[%clk 0:02:17]} 19. fxe5+ {[%clk 0:02:03]}  Ke8 {[%clk 0:02:17]} 20. Rxd5 {[%clk 0:01:37]}  cxd5 {[%clk 0:02:13]} 21. Bc7 {[%clk 0:01:20]}  Rc8 {[%clk 0:01:58]} 22. Bb5+ {[%clk 0:01:15]}  Bd7 {[%clk 0:01:57]} 23. Bxa5 {[%clk 0:01:14]}  Rxc2 {[%clk 0:01:54]} 24. e6 {[%clk 0:01:09]}  Bxb5 {[%clk 0:01:53]} 25. axb5 {[%clk 0:01:10]}  Rc5 {[%clk 0:01:48]} 26. b6 {[%clk 0:00:44]}  Rxa5 {[%clk 0:01:28]} 27. b7 {[%clk 0:00:11]}  Bd4+ {[%clk 0:01:27]} 28. Kh1 {[%clk 0:00:11]}  Be5 {[%clk 0:01:27]} 29. Rc1 {[%clk 0:00:09]}  Kf8 {[%clk 0:01:26]} 30. g4 {[%clk 0:00:07]}  Rb5 {[%clk 0:01:25]} 31. Rf1+ {[%clk 0:00:01]}  Kg8 {[%clk 0:01:20]} 0-1


[Site "https://www.chess.com"]

[Event "Titled Tuesday Blitz August 08 Late 2023"]
[White "Urazayev, Arystanbek"]
[Black "Osmak, Yuliia"]
[WhiteFideId "13709810"]
[BlackFideId "14101602"]
[WhiteElo "2753"]
[BlackElo "2520"]
[Result "0-1"]
[Round "11"]
[TimeControl "180+1"]
[Date "2023.08.08"]
[WhiteClock "0:00:39"]
[BlackClock "0:00:14"]
[Board "22"]

1. e4 {[%clk 0:02:55]}  c5 {[%clk 0:02:59]} 2. Nf3 {[%clk 0:02:55]}  d6 {[%clk 0:02:59]} 3. Nc3 {[%clk 0:02:55]}  a6 {[%clk 0:02:58]} 4. d4 {[%clk 0:02:55]}  cxd4 {[%clk 0:02:59]} 5. Nxd4 {[%clk 0:02:56]}  Nf6 {[%clk 0:03:00]} 6. Rg1 {[%clk 0:02:56]}  e5 {[%clk 0:02:57]} 7. Nb3 {[%clk 0:02:56]}  Be7 {[%clk 0:02:44]} 8. g4 {[%clk 0:02:55]}  Be6 {[%clk 0:02:39]} 9. g5 {[%clk 0:02:55]}  Nfd7 {[%clk 0:02:38]} 10. Be3 {[%clk 0:02:55]}  Nc6 {[%clk 0:02:36]} 11. h4 {[%clk 0:02:55]}  Nb6 {[%clk 0:02:34]} 12. h5 {[%clk 0:02:52]}  Nc4 {[%clk 0:02:26]} 13. Bxc4 {[%clk 0:02:51]}  Bxc4 {[%clk 0:02:27]} 14. Nd5 {[%clk 0:02:50]}  Bxd5 {[%clk 0:02:08]} 15. exd5 {[%clk 0:02:45]}  Nb8 {[%clk 0:02:06]} 16. g6 {[%clk 0:02:46]}  hxg6 {[%clk 0:02:04]} 17. hxg6 {[%clk 0:02:47]}  f5 {[%clk 0:02:02]} 18. Qf3 {[%clk 0:02:46]}  f4 {[%clk 0:01:55]} 19. O-O-O {[%clk 0:02:46]}  fxe3 {[%clk 0:01:52]} 20. Qf7+ {[%clk 0:02:23]}  Kd7 {[%clk 0:01:52]} 21. Rg4 {[%clk 0:02:19]}  Qg8 {[%clk 0:01:45]} 22. Qf5+ {[%clk 0:02:18]}  Kd8 {[%clk 0:01:42]} 23. Na5 {[%clk 0:02:17]}  Ra7 {[%clk 0:01:22]} 24. Qf3 {[%clk 0:01:55]}  Nd7 {[%clk 0:00:46]} 25. Qxe3 {[%clk 0:01:52]}  Ra8 {[%clk 0:00:36]} 26. Nxb7+ {[%clk 0:01:53]}  Ke8 {[%clk 0:00:35]} 27. Kb1 {[%clk 0:01:42]}  Rb8 {[%clk 0:00:26]} 28. Qa7 {[%clk 0:01:40]}  Qxd5 {[%clk 0:00:25]} 29. Nxd6+ {[%clk 0:01:08]}  Bxd6 {[%clk 0:00:23]} 30. Rgg1 {[%clk 0:01:09]}  Qc5 {[%clk 0:00:19]} 31. Qxa6 {[%clk 0:01:08]}  Bc7 {[%clk 0:00:17]} 32. Qe6+ {[%clk 0:01:02]}  Qe7 {[%clk 0:00:17]} 33. Qc4 {[%clk 0:01:02]}  Bd6 {[%clk 0:00:16]} 34. Rh1 {[%clk 0:01:01]}  Rxh1 {[%clk 0:00:15]} 35. Rxh1 {[%clk 0:01:00]}  Nf8 {[%clk 0:00:15]} 36. Qe4 {[%clk 0:00:50]}  Qb7 {[%clk 0:00:15]} 37. Qa4+ {[%clk 0:00:49]}  Qb5 {[%clk 0:00:14]} 38. Qa5 {[%clk 0:00:39]}  Qxa5 {[%clk 0:00:14]} 0-1


[Site "https://www.chess.com"]

[Event "Titled Tuesday Blitz August 08 Late 2023"]
[White "Di Berardino, Diego Rafael"]
[Black "Ashraf, Artin"]
[WhiteFideId "2105446"]
[BlackFideId "22514805"]
[WhiteElo "2617"]
[BlackElo "2814"]
[Result "0-1"]
[Round "11"]
[TimeControl "180+1"]
[Date "2023.08.08"]
[WhiteClock "0:00:00"]
[BlackClock "0:00:11"]
[Board "24"]

1. d4 {[%clk 0:02:56]}  Nf6 {[%clk 0:02:55]} 2. c4 {[%clk 0:02:56]}  e6 {[%clk 0:02:54]} 3. Nc3 {[%clk 0:02:56]}  d5 {[%clk 0:02:52]} 4. Bg5 {[%clk 0:02:51]}  Be7 {[%clk 0:02:51]} 5. e3 {[%clk 0:02:51]}  O-O {[%clk 0:02:50]} 6. Nf3 {[%clk 0:02:52]}  h6 {[%clk 0:02:51]} 7. Bxf6 {[%clk 0:02:51]}  Bxf6 {[%clk 0:02:50]} 8. Rc1 {[%clk 0:02:51]}  c6 {[%clk 0:02:47]} 9. Bd3 {[%clk 0:02:51]}  g6 {[%clk 0:02:34]} 10. O-O {[%clk 0:02:32]}  Bg7 {[%clk 0:02:33]} 11. cxd5 {[%clk 0:02:22]}  exd5 {[%clk 0:02:31]} 12. b4 {[%clk 0:02:22]}  a6 {[%clk 0:02:22]} 13. a4 {[%clk 0:02:20]}  b5 {[%clk 0:02:12]} 14. Ra1 {[%clk 0:02:08]}  Bb7 {[%clk 0:02:09]} 15. Qb3 {[%clk 0:02:04]}  Nd7 {[%clk 0:02:08]} 16. a5 {[%clk 0:01:24]}  Nf6 {[%clk 0:02:01]} 17. Ne5 {[%clk 0:01:23]}  Ne8 {[%clk 0:02:01]} 18. e4 {[%clk 0:01:15]}  Nc7 {[%clk 0:01:56]} 19. exd5 {[%clk 0:01:12]}  cxd5 {[%clk 0:01:55]} 20. Ne2 {[%clk 0:01:07]}  Ne6 {[%clk 0:01:53]} 21. f4 {[%clk 0:01:01]}  Rc8 {[%clk 0:01:52]} 22. Rac1 {[%clk 0:01:01]}  Rc4 {[%clk 0:01:51]} 23. Bxc4 {[%clk 0:00:58]}  dxc4 {[%clk 0:01:50]} 24. Qe3 {[%clk 0:00:57]}  Nc7 {[%clk 0:01:41]} 25. Nc3 {[%clk 0:00:55]}  Re8 {[%clk 0:01:40]} 26. Qf2 {[%clk 0:00:50]}  f6 {[%clk 0:01:37]} 27. Nxg6 {[%clk 0:00:44]}  Kh7 {[%clk 0:01:21]} 28. Nh4 {[%clk 0:00:40]}  Qd7 {[%clk 0:01:13]} 29. Qc2+ {[%clk 0:00:21]}  Kg8 {[%clk 0:01:13]} 30. Nf5 {[%clk 0:00:21]}  Bf8 {[%clk 0:01:10]} 31. Rce1 {[%clk 0:00:19]}  Rd8 {[%clk 0:00:57]} 32. Re3 {[%clk 0:00:18]}  Qf7 {[%clk 0:00:57]} 33. Rg3+ {[%clk 0:00:18]}  Kh8 {[%clk 0:00:57]} 34. Nh4 {[%clk 0:00:16]}  Bg7 {[%clk 0:00:56]} 35. Nf5 {[%clk 0:00:10]}  Bf8 {[%clk 0:00:55]} 36. Re1 {[%clk 0:00:09]}  Ne6 {[%clk 0:00:40]} 37. Ne2 {[%clk 0:00:02]}  Re8 {[%clk 0:00:25]} 38. Rd1 {[%clk 0:00:03]}  Nc7 {[%clk 0:00:20]} 39. Nh4 {[%clk 0:00:02]}  Be4 {[%clk 0:00:18]} 40. Qd2 {[%clk 0:00:01]}  f5 {[%clk 0:00:13]} 41. Nf3 {[%clk 0:00:01]}  Nd5 {[%clk 0:00:12]} 42. Ne5 {[%clk 0:00:01]}  Qe6 {[%clk 0:00:12]} 43. Nc3 {[%clk 0:00:00]}  Bxb4 {[%clk 0:00:11]} 0-1


[Site "https://www.chess.com"]

[Event "Titled Tuesday Blitz August 08 Late 2023"]
[White "Prithu Gupta"]
[Black "Harshavardhan G B"]
[WhiteFideId "46618546"]
[BlackFideId "25059009"]
[WhiteElo "2495"]
[BlackElo "2810"]
[Result "0-1"]
[Round "11"]
[TimeControl "180+1"]
[Date "2023.08.08"]
[WhiteClock "0:00:04"]
[BlackClock "0:00:42"]
[Board "25"]

1. c4 {[%clk 0:02:59]}  e5 {[%clk 0:02:59]} 2. Nc3 {[%clk 0:02:59]}  Nf6 {[%clk 0:02:59]} 3. Nf3 {[%clk 0:02:59]}  Nc6 {[%clk 0:02:58]} 4. e4 {[%clk 0:02:59]}  Bb4 {[%clk 0:02:52]} 5. d3 {[%clk 0:02:59]}  d6 {[%clk 0:02:52]} 6. a3 {[%clk 0:02:58]}  Bc5 {[%clk 0:02:50]} 7. b4 {[%clk 0:02:58]}  Bb6 {[%clk 0:02:50]} 8. Na4 {[%clk 0:02:58]}  Bd4 {[%clk 0:02:48]} 9. Nxd4 {[%clk 0:02:58]}  Nxd4 {[%clk 0:02:49]} 10. Nc3 {[%clk 0:02:58]}  a5 {[%clk 0:02:48]} 11. b5 {[%clk 0:02:56]}  c6 {[%clk 0:02:48]} 12. a4 {[%clk 0:02:56]}  O-O {[%clk 0:02:44]} 13. Be2 {[%clk 0:02:56]}  d5 {[%clk 0:02:39]} 14. exd5 {[%clk 0:02:49]}  cxd5 {[%clk 0:02:38]} 15. O-O {[%clk 0:02:49]}  Be6 {[%clk 0:02:37]} 16. Bb2 {[%clk 0:02:04]}  Rc8 {[%clk 0:02:33]} 17. Nxd5 {[%clk 0:01:56]}  Nxd5 {[%clk 0:02:34]} 18. Bxd4 {[%clk 0:01:36]}  exd4 {[%clk 0:02:35]} 19. cxd5 {[%clk 0:01:36]}  Bxd5 {[%clk 0:02:35]} 20. Bf3 {[%clk 0:01:22]}  Rc3 {[%clk 0:02:34]} 21. Re1 {[%clk 0:01:18]}  Qd6 {[%clk 0:02:33]} 22. h3 {[%clk 0:01:09]}  g6 {[%clk 0:02:30]} 23. Bxd5 {[%clk 0:00:54]}  Qxd5 {[%clk 0:02:31]} 24. Qg4 {[%clk 0:00:41]}  Rxd3 {[%clk 0:02:28]} 25. Rad1 {[%clk 0:00:41]}  Rxd1 {[%clk 0:02:28]} 26. Rxd1 {[%clk 0:00:40]}  d3 {[%clk 0:02:28]} 27. Qg3 {[%clk 0:00:33]}  d2 {[%clk 0:02:15]} 28. Qc3 {[%clk 0:00:32]}  Rd8 {[%clk 0:02:14]} 29. Qxa5 {[%clk 0:00:32]}  Qd3 {[%clk 0:02:13]} 30. Kh2 {[%clk 0:00:27]}  h5 {[%clk 0:02:11]} 31. Qc7 {[%clk 0:00:20]}  Rd7 {[%clk 0:02:08]} 32. Qc8+ {[%clk 0:00:19]}  Kh7 {[%clk 0:02:05]} 33. Qe8 {[%clk 0:00:13]}  Kg7 {[%clk 0:01:56]} 34. Qe5+ {[%clk 0:00:13]}  Kf8 {[%clk 0:01:51]} 35. Qb8+ {[%clk 0:00:12]}  Rd8 {[%clk 0:01:46]} 36. Qxb7 {[%clk 0:00:11]}  Qc2 {[%clk 0:01:41]} 37. Qf3 {[%clk 0:00:11]}  Qxa4 {[%clk 0:01:37]} 38. Qe3 {[%clk 0:00:09]}  Qb4 {[%clk 0:01:33]} 39. b6 {[%clk 0:00:08]}  h4 {[%clk 0:01:32]} 40. b7 {[%clk 0:00:07]}  Qd6+ {[%clk 0:01:20]} 41. g3 {[%clk 0:00:07]}  hxg3+ {[%clk 0:01:19]} 42. fxg3 {[%clk 0:00:07]}  Qd7 {[%clk 0:01:09]} 43. b8=Q {[%clk 0:00:05]}  Rxb8 {[%clk 0:01:08]} 44. Rxd2 {[%clk 0:00:06]}  Qc7 {[%clk 0:01:05]} 45. Rf2 {[%clk 0:00:06]}  Kg8 {[%clk 0:01:04]} 46. Qf4 {[%clk 0:00:05]}  Qa7 {[%clk 0:01:03]} 47. h4 {[%clk 0:00:05]}  Rb5 {[%clk 0:00:57]} 48. Qf3 {[%clk 0:00:02]}  Rf5 {[%clk 0:00:52]} 49. Qxf5 {[%clk 0:00:03]}  gxf5 {[%clk 0:00:52]} 50. Rxf5 {[%clk 0:00:04]}  Qa2+ {[%clk 0:00:52]} 51. Kh3 {[%clk 0:00:04]}  Qb1 {[%clk 0:00:48]} 52. Rf4 {[%clk 0:00:04]}  Kg7 {[%clk 0:00:47]} 53. Rg4+ {[%clk 0:00:03]}  Kf6 {[%clk 0:00:45]} 54. Rf4+ {[%clk 0:00:04]}  Ke6 {[%clk 0:00:45]} 55. Kg2 {[%clk 0:00:04]}  f5 {[%clk 0:00:43]} 56. Kh3 {[%clk 0:00:04]}  Qh1# {[%clk 0:00:42]} 0-1


[Site "https://www.chess.com"]